fUSD/lending_fUSD_20260615
["ID","MTS","AMOUNT","RATE_DAILY","PERIOD"]
[425095149,1781490295000,-500.0,0.00011884,2]
[425095158,1781490295000,-188.08256242,0.00011884,2]
[425095156,1781490295000,-500.0,0.00011884,2]
[425095157,1781490295000,-500.0,0.00011884,2]
[425095148,1781490295000,-500.0,0.00011884,2]
[425095153,1781490295000,-500.0,0.00011884,2]
[425095151,1781490295000,-500.0,0.00011884,2]
[425095152,1781490295000,-500.0,0.00011884,2]
[425095154,1781490295000,-500.0,0.00011884,2]
[425095159,1781490296000,-311.91743758,0.00011884,2]
[425095161,1781490296000,-500.0,0.00011884,2]
[425095160,1781490296000,-500.0,0.00011884,2]
[425095162,1781490296000,-500.0,0.00011884,2]
[425095163,1781490296000,-500.0,0.00011884,2]
[425095165,1781490296000,-500.0,0.00011884,2]
[425095164,1781490296000,-500.0,0.00011884,2]
[425095166,1781490297000,-500.0,0.00011884,2]
[425095167,1781490297000,-500.0,0.00011884,2]
[425095168,1781490297000,-500.0,0.00011884,2]
[425095169,1781490297000,-500.0,0.00011884,2]
[425095170,1781490297000,-260.4528147,0.00011884,2]
[425095172,1781490297000,-500.0,0.00011884,2]
[425095175,1781490297000,-500.0,0.00011884,2]
[425095173,1781490297000,-500.0,0.00011884,2]
[425095174,1781490297000,-650.0,0.00011884,2]
[425095176,1781490297000,-500.0,0.00011884,2]
[425095178,1781490297000,-500.0,0.00011884,2]
[425095179,1781490297000,-277.62974772,0.00011884,2]
[425095171,1781490297000,-500.0,0.00011884,2]
[425095177,1781490297000,-500.0,0.00011884,2]
[425095181,1781490298000,-500.0,0.00011884,2]
[425095180,1781490298000,-222.37025228,0.00011884,2]
[425095185,1781490299000,-500.0,0.00011884,2]
[425095182,1781490299000,-500.0,0.00011884,2]
[425095184,1781490299000,-500.0,0.00011884,2]
[425095183,1781490299000,-500.0,0.00011884,2]
[425095186,1781490299000,-500.0,0.00011884,2]
[425095188,1781490299000,-500.0,0.00011884,2]
[425095189,1781490299000,-1980.12,0.00012381,2]
[425095190,1781490299000,-3797.50974772,0.00012526,2]
[425095187,1781490299000,-500.0,0.00011884,2]
[425095192,1781490304000,-300.0,0.00011883,2]
[425095191,1781490304000,-209.0,0.00011842,2]
[425095193,1781490304000,-1991.0,0.00012526,2]
[425095194,1781490333000,168.87879556,0.00030136,120]
[425095197,1781490335000,-182.84060805,0.00011884,2]
[425095196,1781490335000,-150.49939195,0.00011884,2]
[425095195,1781490335000,-166.66,0.00011847,2]
[425095204,1781490368000,-8493.65867212,0.00012046,2]
[425095203,1781490368000,-300.0,0.00012021,2]
[425095202,1781490368000,-356.34132788,0.00011996,2]
[425095205,1781490384000,-45943.04688798,0.00012046,2]
[425095206,1781490390000,-166.66,0.00012097,2]
[425095208,1781490390000,654.76135186,0.00011996,2]
[425095207,1781490390000,-1307.39,0.00012158,2]
[425095209,1781490392000,654.76135184,0.00012211,2]
[425095210,1781490509000,303.0,0.00030137,120]
[425095211,1781490535000,-1444.35,0.00012012,2]
[425095213,1781490631000,-3390.90232501,0.00012004,2]
[425095214,1781490631000,-300.0,0.00012004,2]
[425095215,1781490631000,-150.0,0.00012004,2]
[425095217,1781490631000,-151.0,0.00012004,2]
[425095219,1781490631000,-150.0,0.00012012,2]
[425095216,1781490631000,-151.0,0.00012004,2]
[425095218,1781490631000,-151.0,0.00012012,2]
[425095221,1781490632000,-300.0,0.00012014,2]
[425095222,1781490632000,-311.1223426,0.00012021,2]
[425095224,1781490632000,-1363.54,0.00012029,2]
[425095220,1781490632000,-151.0,0.00012012,2]
[425095225,1781490632000,-186.77,0.00012029,2]
[425095226,1781490632000,-150.0,0.00012052,2]
[425095227,1781490632000,-29731.4007204,0.00012053,2]
[425095232,1781490632000,-22174.2673171,0.00012053,2]
[425095231,1781490632000,-6047.38970563,0.00012053,2]
[425095228,1781490632000,-33172.60498167,0.00012053,2]
[425095230,1781490632000,-58557.1605763,0.00012053,2]
[425095233,1781490632000,-320.0,0.00012053,2]
[425095229,1781490632000,-534.17442931,0.00012053,2]
[425095248,1781490637000,-96513.025763,0.00012054,2]
[425095251,1781490637000,-150.0,0.00012104,2]
[425095249,1781490637000,-573.83,0.00012104,2]
[425095247,1781490637000,-121270.31150279,0.00012053,2]
[425095253,1781490637000,-350.68,0.00012126,2]
[425095250,1781490637000,-153.0,0.00012104,2]
[425095252,1781490637000,-152.0,0.00012104,2]
[425095254,1781490637000,-200.0,0.0001223,2]
[425095286,1781490638000,-151.0,0.00013263,2]
[425095296,1781490638000,-150.59431208,0.00013488,2]
[425095285,1781490638000,-151.0,0.00013263,2]
[425095303,1781490638000,-150.0,0.00013488,2]
[425095300,1781490638000,-150.18186273,0.00013488,2]
[425095298,1781490638000,-150.0,0.00013488,2]
[425095292,1781490638000,-153.60515788,0.00013488,2]
[425095287,1781490638000,-151.0,0.00013263,2]
[425095294,1781490638000,-150.43087517,0.00013488,2]
[425095290,1781490638000,-1307.39,0.00013374,2]
[425095288,1781490638000,-3390.90232493,0.00013291,2]
[425095305,1781490638000,-150.0,0.00013488,2]
[425095316,1781490638000,-2560.26422788,0.00013599,2]
[425095281,1781490638000,-300.0,0.00013204,2]
[425095309,1781490638000,-439.31372657,0.00013537,2]
[425095308,1781490638000,-150.03634183,0.00013488,2]
[425095315,1781490638000,-2500.0,0.00013599,2]
[425095311,1781490638000,-2045.24118643,0.00013537,2]
[425095312,1781490638000,-3059.55849706,0.00013537,2]
[425095310,1781490638000,-1159.35587505,0.00013537,2]
[425095314,1781490638000,-157.2008546,0.00013594,2]
[425095313,1781490638000,-4139.685,0.00013537,2]
[425095318,1781490638000,-2862.54,0.00013608,2]
[425095332,1781490638000,-500.0,0.00013698,2]
[425095329,1781490638000,-500.0,0.00013698,2]
[425095307,1781490638000,-168.89341647,0.00013488,2]
[425095284,1781490638000,-250.0,0.00013213,2]
[425095283,1781490638000,-645.31897345,0.00013204,2]
[425095334,1781490638000,-500.0,0.00013698,2]
[425095255,1781490638000,-3390.90232493,0.00012326,2]
[425095257,1781490638000,-166.66,0.00012346,2]
[425095256,1781490638000,-152.0,0.00012344,2]
[425095258,1781490638000,-654.76135184,0.00012425,2]
[425095261,1781490638000,-151.0,0.00012526,2]
[425095260,1781490638000,-23531.92439608,0.00012526,2]
[425095259,1781490638000,-1307.39,0.00012462,2]
[425095263,1781490638000,-166.66,0.00012595,2]
[425095272,1781490638000,-1684.98,0.00012934,2]
[425095264,1781490638000,-200.0,0.00012598,2]
[425095262,1781490638000,-152.0,0.00012526,2]
[425095266,1781490638000,-153.0,0.00012624,2]
[425095265,1781490638000,-151.0,0.00012624,2]
[425095270,1781490638000,-1182.1558907,0.00012799,2]
[425095269,1781490638000,-1307.39,0.00012766,2]
[425095268,1781490638000,-3285.14,0.00012734,2]
[425095267,1781490638000,-3390.90232493,0.00012648,2]
[425095271,1781490638000,-166.66,0.00012845,2]
[425095273,1781490638000,-200.0,0.00012942,2]
[425095274,1781490638000,-3390.90232493,0.00012969,2]
[425095275,1781490638000,-152.0,0.00012999,2]
[425095278,1781490638000,-166.66,0.00013094,2]
[425095277,1781490638000,-1307.39,0.0001307,2]
[425095276,1781490638000,-165.76,0.00013045,2]
[425095279,1781490638000,-255.0,0.00013137,2]
[425095280,1781490638000,-300.0,0.00013196,2]
[425095320,1781490638000,-3390.90232493,0.00013613,2]
[425095282,1781490638000,-300.46017444,0.00013204,2]
[425095337,1781490638000,-500.0,0.00013698,2]
[425095368,1781490638000,-506.8,0.00013798,2]
[425095366,1781490638000,-506.8,0.00013798,2]
[425095364,1781490638000,-506.8,0.00013798,2]
[425095362,1781490638000,-500.0,0.00013798,2]
[425095370,1781490638000,-293.98249258,0.00013798,2]
[425095371,1781490638000,-500.0,0.00013798,2]
[425095367,1781490638000,-506.8,0.00013798,2]
[425095363,1781490638000,-500.0,0.00013798,2]
[425095369,1781490638000,-506.8,0.00013798,2]
[425095374,1781490638000,-500.0,0.00013798,2]
[425095373,1781490638000,-500.0,0.00013798,2]
[425095385,1781490638000,-670.06,0.00013861,2]
[425095365,1781490638000,-506.8,0.00013798,2]
[425095386,1781490638000,-2000.0,0.00013886,2]
[425095377,1781490638000,-500.0,0.00013798,2]
[425095379,1781490638000,-500.0,0.00013798,2]
[425095375,1781490638000,-500.0,0.00013798,2]
[425095380,1781490638000,-500.0,0.00013798,2]
[425095376,1781490638000,-500.0,0.00013798,2]
[425095381,1781490638000,-500.0,0.00013798,2]
[425095382,1781490638000,-500.0,0.00013798,2]
[425095378,1781490638000,-500.0,0.00013798,2]
[425095383,1781490638000,-500.0,0.00013798,2]
[425095387,1781490638000,-2560.26422782,0.00013888,2]
[425095389,1781490638000,-500.0,0.00013898,2]
[425095336,1781490638000,-500.0,0.00013698,2]
[425095384,1781490638000,-500.0,0.00013834,2]
[425095372,1781490638000,-500.0,0.00013798,2]
[425095388,1781490638000,-500.0,0.00013898,2]
[425095356,1781490638000,-500.0,0.00013798,2]
[425095361,1781490638000,-500.0,0.00013798,2]
[425095338,1781490638000,-500.0,0.00013698,2]
[425095325,1781490638000,-187.8,0.00013671,2]
[425095327,1781490638000,-187.8,0.00013671,2]
[425095339,1781490638000,-506.8,0.00013698,2]
[425095346,1781490638000,-500.0,0.00013698,2]
[425095344,1781490638000,-500.0,0.00013698,2]
[425095340,1781490638000,-506.8,0.00013698,2]
[425095342,1781490638000,-500.0,0.00013698,2]
[425095347,1781490638000,-500.0,0.00013698,2]
[425095341,1781490638000,-506.8,0.00013698,2]
[425095345,1781490638000,-500.0,0.00013698,2]
[425095343,1781490638000,-500.0,0.00013698,2]
[425095322,1781490638000,-502.0,0.00013671,2]
[425095349,1781490638000,-500.0,0.00013698,2]
[425095350,1781490638000,-500.0,0.00013698,2]
[425095360,1781490638000,-500.0,0.00013798,2]
[425095351,1781490638000,-2000.0,0.00013699,2]
[425095359,1781490638000,-500.0,0.00013798,2]
[425095353,1781490638000,-2560.26422782,0.00013744,2]
[425095354,1781490638000,-500.0,0.00013766,2]
[425095357,1781490638000,-500.0,0.00013798,2]
[425095358,1781490638000,-500.0,0.00013798,2]
[425095352,1781490638000,-152.84783851,0.00013699,2]
[425095355,1781490638000,-250.0,0.00013779,2]
[425095348,1781490638000,-500.0,0.00013698,2]
[425095429,1781490639000,-275.709857,0.00014482,2]
[425095434,1781490639000,-500.0,0.00014516,2]
[425095431,1781490639000,-500.0,0.00014516,2]
[425095430,1781490639000,-175.951874,0.00014482,2]
[425095418,1781490639000,-500.0,0.00014399,2]
[425095421,1781490639000,-500.0,0.00014399,2]
[425095420,1781490639000,-500.0,0.00014399,2]
[425095419,1781490639000,-500.0,0.00014399,2]
[425095417,1781490639000,-500.0,0.00014399,2]
[425095441,1781490639000,-690.26,0.00014516,2]
[425095426,1781490639000,-3973.398,0.00014417,2]
[425095428,1781490639000,-2560.26422782,0.00014466,2]
[425095435,1781490639000,-500.0,0.00014516,2]
[425095432,1781490639000,-500.0,0.00014516,2]
[425095427,1781490639000,-350.0,0.00014463,2]
[425095436,1781490639000,-500.0,0.00014516,2]
[425095433,1781490639000,-500.0,0.00014516,2]
[425095437,1781490639000,-580.74875671,0.00014516,2]
[425095438,1781490639000,-690.26,0.00014516,2]
[425095439,1781490639000,-690.26,0.00014516,2]
[425095440,1781490639000,-690.26,0.00014516,2]
[425095447,1781490639000,-2560.26422782,0.00014611,2]
[425095442,1781490639000,-690.26,0.00014516,2]
[425095444,1781490639000,-3390.90232493,0.00014578,2]
[425095423,1781490639000,-690.26,0.00014399,2]
[425095425,1781490639000,-258.184,0.00014417,2]
[425095422,1781490639000,-690.26,0.00014399,2]
[425095409,1781490639000,-150.0,0.00014297,2]
[425095424,1781490639000,-513.94820383,0.00014399,2]
[425095443,1781490639000,-350.0,0.00014567,2]
[425095395,1781490639000,-167.59332164,0.00013899,2]
[425095391,1781490639000,-500.0,0.00013898,2]
[425095398,1781490639000,-171.7263481,0.00013937,2]
[425095390,1781490639000,-500.0,0.00013898,2]
[425095394,1781490639000,-164.32884193,0.00013899,2]
[425095399,1781490639000,-22286.21625473,0.0001399,2]
[425095393,1781490639000,-500.0,0.00013898,2]
[425095400,1781490639000,-2560.26422782,0.00014033,2]
[425095396,1781490639000,-482.85,0.00013927,2]
[425095392,1781490639000,-500.0,0.00013898,2]
[425095397,1781490639000,-3390.90232493,0.00013935,2]
[425095416,1781490639000,-164.32884193,0.00014378,2]
[425095412,1781490639000,-350.0,0.00014325,2]
[425095401,1781490639000,-2560.26422782,0.00014177,2]
[425095408,1781490639000,-3390.90232493,0.00014256,2]
[425095410,1781490639000,-433.0,0.00014318,2]
[425095407,1781490639000,-200.72513036,0.00014249,2]
[425095411,1781490639000,-2560.26422782,0.00014322,2]
[425095403,1781490639000,-150.0,0.00014237,2]
[425095405,1781490639000,-151.0,0.00014249,2]
[425095406,1781490639000,-156.587,0.00014249,2]
[425095404,1781490639000,-150.0,0.00014237,2]
[425095415,1781490639000,-500.0,0.00014347,2]
[425095413,1781490639000,-164.32884193,0.00014339,2]
[425095414,1781490639000,-167.59332164,0.00014339,2]
[425095402,1781490639000,-150.0,0.00014237,2]
[425095446,1781490639000,-230.67064,0.00014602,2]
[425095476,1781490639000,-500.0,0.00014993,2]
[425095449,1781490639000,-192.494941,0.00014694,2]
[425095475,1781490639000,-500.0,0.00014993,2]
[425095478,1781490639000,-163.6070244,0.00014994,2]
[425095482,1781490639000,-500.0,0.00014999,2]
[425095484,1781490639000,-251.52702595,0.00014999,2]
[425095485,1781490639000,-690.26,0.00014999,2]
[425095483,1781490639000,-500.0,0.00014999,2]
[425095490,1781490639000,-690.26,0.00014999,2]
[425095493,1781490639000,-690.26,0.00014999,2]
[425095492,1781490639000,-690.26,0.00014999,2]
[425095486,1781490639000,-690.26,0.00014999,2]
[425095491,1781490639000,-690.26,0.00014999,2]
[425095487,1781490639000,-690.26,0.00014999,2]
[425095479,1781490639000,-859.6771428,0.00014994,2]
[425095489,1781490639000,-690.26,0.00014999,2]
[425095495,1781490639000,-690.26,0.00014999,2]
[425095494,1781490639000,-690.26,0.00014999,2]
[425095497,1781490639000,-690.26,0.00014999,2]
[425095498,1781490639000,-690.26,0.00014999,2]
[425095496,1781490639000,-690.26,0.00014999,2]
[425095500,1781490639000,-690.45,0.00014999,2]
[425095504,1781490639000,-506.8,0.00014999,2]
[425095501,1781490639000,-506.8,0.00014999,2]
[425095445,1781490639000,-324.167078,0.00014602,2]
[425095502,1781490639000,-506.8,0.00014999,2]
[425095503,1781490639000,-506.8,0.00014999,2]
[425095505,1781490639000,-506.8,0.00014999,2]
[425095488,1781490639000,-690.26,0.00014999,2]
[425095477,1781490639000,-500.0,0.00014993,2]
[425095499,1781490639000,-690.26,0.00014999,2]
[425095471,1781490639000,-4446.9488922,0.00014992,2]
[425095473,1781490639000,-506.8,0.00014993,2]
[425095459,1781490639000,-625.0,0.000149,5]
[425095450,1781490639000,-255.799479,0.00014697,2]
[425095452,1781490639000,-690.26,0.00014708,2]
[425095453,1781490639000,-2560.26422782,0.00014755,2]
[425095451,1781490639000,-251.475066,0.00014699,2]
[425095454,1781490639000,-1619.60867713,0.00014778,2]
[425095456,1781490639000,-200.0,0.0001488,2]
[425095455,1781490639000,-200.0,0.00014879,2]
[425095457,1781490639000,-200.0,0.0001488,2]
[425095458,1781490639000,-999.4623,0.000149,2]
[425095460,1781490639000,-308.0,0.000149,5]
[425095463,1781490639000,-1976.71377172,0.000149,2]
[425095448,1781490639000,-297.348871,0.00014675,2]
[425095464,1781490639000,-3390.90232493,0.000149,2]
[425095462,1781490639000,-539.98693962,0.000149,2]
[425095481,1781490639000,-151.0,0.00014997,2]
[425095480,1781490639000,-210.6872853,0.00014994,2]
[425095472,1781490639000,-500.0,0.00014993,2]
[425095468,1781490639000,-156.18123839,0.00014986,2]
[425095474,1781490639000,-506.8,0.00014993,2]
[425095470,1781490639000,-154.65220624,0.00014986,2]
[425095469,1781490639000,-154.17590159,0.00014986,2]
[425095466,1781490639000,-210.01209059,0.000149,2]
[425095465,1781490639000,-679.92848543,0.000149,2]
[425095461,1781490639000,-2560.26422782,0.000149,2]
[425095467,1781490639000,-163.25776194,0.00014985,2]
[425095550,1781490640000,-500.0,0.00014999,2]
[425095541,1781490640000,-500.0,0.00014999,2]
[425095540,1781490640000,-500.0,0.00014999,2]
[425095542,1781490640000,-500.0,0.00014999,2]
[425095539,1781490640000,-500.0,0.00014999,2]
[425095537,1781490640000,-500.0,0.00014999,2]
[425095536,1781490640000,-500.0,0.00014999,2]
[425095532,1781490640000,-500.0,0.00014999,2]
[425095552,1781490640000,-500.0,0.00014999,2]
[425095538,1781490640000,-500.0,0.00014999,2]
[425095535,1781490640000,-500.0,0.00014999,2]
[425095546,1781490640000,-500.0,0.00014999,2]
[425095549,1781490640000,-500.0,0.00014999,2]
[425095551,1781490640000,-500.0,0.00014999,2]
[425095554,1781490640000,-500.0,0.00014999,2]
[425095547,1781490640000,-500.0,0.00014999,2]
[425095544,1781490640000,-500.0,0.00014999,2]
[425095553,1781490640000,-500.0,0.00014999,2]
[425095548,1781490640000,-500.0,0.00014999,2]
[425095545,1781490640000,-500.0,0.00014999,2]
[425095566,1781490640000,-1391.71,0.00015,2]
[425095556,1781490640000,-500.0,0.00014999,2]
[425095531,1781490640000,-500.0,0.00014999,2]
[425095543,1781490640000,-500.0,0.00014999,2]
[425095534,1781490640000,-500.0,0.00014999,2]
[425095516,1781490640000,-500.0,0.00014999,2]
[425095529,1781490640000,-500.0,0.00014999,2]
[425095555,1781490640000,-500.0,0.00014999,2]
[425095507,1781490640000,-506.8,0.00014999,2]
[425095506,1781490640000,-506.8,0.00014999,2]
[425095508,1781490640000,-506.8,0.00014999,2]
[425095509,1781490640000,-506.8,0.00014999,2]
[425095512,1781490640000,-506.8,0.00014999,2]
[425095510,1781490640000,-506.8,0.00014999,2]
[425095511,1781490640000,-506.8,0.00014999,2]
[425095513,1781490640000,-506.83830426,0.00014999,2]
[425095515,1781490640000,-3000.0,0.00014999,2]
[425095514,1781490640000,-250.0,0.00014999,2]
[425095517,1781490640000,-500.0,0.00014999,2]
[425095518,1781490640000,-500.0,0.00014999,2]
[425095527,1781490640000,-500.0,0.00014999,2]
[425095519,1781490640000,-500.0,0.00014999,2]
[425095521,1781490640000,-500.0,0.00014999,2]
[425095520,1781490640000,-500.0,0.00014999,2]
[425095525,1781490640000,-500.0,0.00014999,2]
[425095524,1781490640000,-500.0,0.00014999,2]
[425095526,1781490640000,-500.0,0.00014999,2]
[425095523,1781490640000,-500.0,0.00014999,2]
[425095528,1781490640000,-500.0,0.00014999,2]
[425095530,1781490640000,-500.0,0.00014999,2]
[425095533,1781490640000,-500.0,0.00014999,2]
[425095557,1781490640000,-500.0,0.00014999,2]
[425095522,1781490640000,-500.0,0.00014999,2]
[425095559,1781490640000,-500.0,0.00014999,2]
[425095587,1781490640000,-151.0,0.00015,2]
[425095590,1781490640000,-151.0,0.00015,2]
[425095599,1781490640000,-412.68712,0.00015,2]
[425095596,1781490640000,-162.60446,0.00015,2]
[425095601,1781490640000,-412.68712,0.00015,2]
[425095597,1781490640000,-752.0,0.00015,2]
[425095612,1781490640000,-10249.09386022,0.000152,2]
[425095598,1781490640000,-412.68712,0.00015,2]
[425095591,1781490640000,-151.0,0.00015,2]
[425095594,1781490640000,-151.0,0.00015,2]
[425095595,1781490640000,-151.0,0.00015,2]
[425095583,1781490640000,-151.0,0.00015,2]
[425095600,1781490640000,-412.68712,0.00015,2]
[425095592,1781490640000,-155.94594,0.00015,2]
[425095603,1781490640000,-412.68712,0.00015,2]
[425095602,1781490640000,-412.68712,0.00015,2]
[425095613,1781490640000,-150.0,0.000153,2]
[425095610,1781490640000,-165.76,0.00015198,2]
[425095607,1781490640000,-6583.42920961,0.00015111,2]
[425095604,1781490640000,-238.688771,0.00015037,7]
[425095611,1781490640000,-150.0,0.000152,2]
[425095609,1781490640000,-200.0,0.0001515,2]
[425095605,1781490640000,-150.0,0.00015068,2]
[425095606,1781490640000,-150.0,0.000151,2]
[425095593,1781490640000,-151.0,0.00015,2]
[425095584,1781490640000,-151.0,0.00015,2]
[425095560,1781490640000,-500.0,0.00014999,2]
[425095585,1781490640000,-151.0,0.00015,2]
[425095586,1781490640000,-151.0,0.00015,2]
[425095563,1781490640000,-234.30931379,0.00014999,2]
[425095558,1781490640000,-500.0,0.00014999,2]
[425095564,1781490640000,-300.0,0.00014999,2]
[425095565,1781490640000,-6193673.53153759,0.00015,2]
[425095561,1781490640000,-500.0,0.00014999,2]
[425095562,1781490640000,-342.76471609,0.00014999,2]
[425095568,1781490640000,-429.19083314,0.00015,2]
[425095570,1781490640000,-150.0,0.00015,2]
[425095569,1781490640000,-151.0,0.00015,2]
[425095577,1781490640000,-151.0,0.00015,2]
[425095575,1781490640000,-151.0,0.00015,2]
[425095567,1781490640000,-1517510.11668631,0.00015,2]
[425095576,1781490640000,-151.789558,0.00015,2]
[425095573,1781490640000,-200.0,0.00015,2]
[425095571,1781490640000,-152.0,0.00015,2]
[425095572,1781490640000,-10249.09386022,0.00015,2]
[425095580,1781490640000,-222.064043,0.00015,2]
[425095579,1781490640000,-222.064043,0.00015,2]
[425095588,1781490640000,-151.0,0.00015,2]
[425095578,1781490640000,-151.0,0.00015,2]
[425095581,1781490640000,-222.064043,0.00015,2]
[425095589,1781490640000,-151.0,0.00015,2]
[425095582,1781490640000,-222.064043,0.00015,2]
[425095574,1781490640000,-562.93,0.00015,2]
[425095647,1781490641000,-410.12,0.00015542,2]
[425095650,1781490641000,-6111.0,0.00015617,2]
[425095649,1781490641000,-10249.09386022,0.000156,2]
[425095648,1781490641000,-150.0,0.000156,2]
[425095642,1781490641000,-482.85,0.00015475,2]
[425095646,1781490641000,-459.0,0.00015533,5]
[425095645,1781490641000,-10249.09386022,0.000155,2]
[425095644,1781490641000,-150.0,0.000155,2]
[425095652,1781490641000,-410.12,0.00015625,2]
[425095643,1781490641000,-10000.0,0.00015487,2]
[425095654,1781490641000,-300.0,0.000157,2]
[425095664,1781490641000,-350.0,0.00015876,2]
[425095651,1781490641000,-15000.0,0.00015619,2]
[425095653,1781490641000,-15000.0,0.00015639,2]
[425095655,1781490641000,-6111.0,0.00015721,2]
[425095657,1781490641000,-464.30867591,0.00015765,2]
[425095659,1781490641000,-300.0,0.000158,2]
[425095661,1781490641000,-410.15,0.00015825,2]
[425095658,1781490641000,-364.16954065,0.00015785,2]
[425095660,1781490641000,-10249.09386022,0.000158,2]
[425095663,1781490641000,-1500.0,0.00015867,2]
[425095667,1781490641000,-152.84783851,0.00015939,2]
[425095641,1781490641000,-410.12,0.00015469,2]
[425095656,1781490641000,-254.97,0.00015742,2]
[425095640,1781490641000,-360.10321801,0.00015447,2]
[425095626,1781490641000,-500.0,0.00015447,2]
[425095638,1781490641000,-500.0,0.00015447,2]
[425095665,1781490641000,-10249.09386022,0.000159,2]
[425095616,1781490641000,-410.12,0.00015348,2]
[425095614,1781490641000,-10249.09386022,0.000153,2]
[425095622,1781490641000,-500.0,0.00015447,2]
[425095625,1781490641000,-580.62434415,0.00015447,2]
[425095617,1781490641000,-350.0,0.00015369,2]
[425095623,1781490641000,-500.0,0.00015447,2]
[425095621,1781490641000,-199.611884,0.00015435,2]
[425095618,1781490641000,-150.0,0.000154,2]
[425095619,1781490641000,-670.06,0.00015401,2]
[425095620,1781490641000,-353.56180098,0.00015405,2]
[425095639,1781490641000,-500.0,0.00015447,2]
[425095615,1781490641000,-200.0,0.00015301,2]
[425095627,1781490641000,-500.0,0.00015447,2]
[425095633,1781490641000,-500.0,0.00015447,2]
[425095635,1781490641000,-500.0,0.00015447,2]
[425095628,1781490641000,-500.0,0.00015447,2]
[425095629,1781490641000,-500.0,0.00015447,2]
[425095631,1781490641000,-500.0,0.00015447,2]
[425095632,1781490641000,-500.0,0.00015447,2]
[425095630,1781490641000,-500.0,0.00015447,2]
[425095634,1781490641000,-500.0,0.00015447,2]
[425095637,1781490641000,-500.0,0.00015447,2]
[425095636,1781490641000,-500.0,0.00015447,2]
[425095624,1781490641000,-500.0,0.00015447,2]
[425095666,1781490641000,-350.0,0.00015923,2]
[425095675,1781490641000,-310.0,0.000161,2]
[425095668,1781490641000,-300.0,0.00016,2]
[425095699,1781490641000,-2686.0,0.000163,2]
[425095693,1781490641000,-1275.0,0.0001619,2]
[425095694,1781490641000,-1228.169,0.0001619,2]
[425095695,1781490641000,-1364.377,0.0001619,2]
[425095703,1781490641000,-10249.09386022,0.000164,2]
[425095711,1781490641000,-728.300138,0.00016438,2]
[425095712,1781490641000,-728.300138,0.00016438,2]
[425095702,1781490641000,-1391.71,0.000164,2]
[425095704,1781490641000,-1555.5,0.00016415,2]
[425095710,1781490641000,-728.300138,0.00016438,2]
[425095708,1781490641000,-154.584177,0.00016438,2]
[425095697,1781490641000,-10249.09386022,0.000162,2]
[425095662,1781490641000,-414.32,0.00015851,2]
[425095705,1781490641000,-877.34,0.00016438,2]
[425095709,1781490641000,-728.300138,0.00016438,2]
[425095714,1781490641000,-350.0,0.00016454,2]
[425095713,1781490641000,-1000.0,0.00016438,2]
[425095716,1781490641000,-410.12,0.00016486,2]
[425095717,1781490641000,-410.12,0.00016491,2]
[425095718,1781490641000,-410.12,0.00016526,2]
[425095719,1781490641000,-309.89220436,0.00016567,2]
[425095715,1781490641000,-414.32,0.00016481,2]